[Event "FIDE Grand Swiss 2023"]
[Site "Villa Marina, Douglas, Isle of Man"]
[Date "2023.10.29"]
[Round "5.14"]
[White "Deac, Bogdan-Daniel"]
[Black "Kuzubov, Yuriy"]
[Result "1/2-1/2"]
[WhiteElo "2701"]
[BlackElo "2625"]
[EventDate "2023.10.25"]
[ECO "E05"]
[PlyCount "63"]
[BlackFideId "14112906"]
[TimeControl "40/100 + 20/50 + 15 + 30s/move"]
[WhiteFideId "1226380"]

1.c4 {[%clk 01:40:57] [%emt 00:00:02]} 1...e6 {[%clk 01:40:13] [%emt 00:00:47]} 
2.g3 {[%clk 01:41:14] [%emt 00:00:14]} 2...d5 {[%clk 01:40:31] [%emt 00:00:12]} 
3.Bg2 {[%clk 01:41:41] [%emt 00:00:02]} 3...Nf6 {[%clk 01:40:50] [%emt
00:00:10]} 4.Nf3 {[%clk 01:41:11] [%emt 00:01:01]} 4...Be7 {[%clk 01:41:12]
[%emt 00:00:08]} 5.d4 {[%clk 01:40:41] [%emt 00:01:00]} 5...O-O {[%clk 01:41:33]
[%emt 00:00:09]} 6.O-O {[%clk 01:41:08] [%emt 00:00:04]} 6...dxc4 {[%clk
01:41:51] [%emt 00:00:12]} 7.Qc2 {[%clk 01:41:21] [%emt 00:00:17]} 7...a6 
{[%clk 01:42:04] [%emt 00:00:16]} 8.a4 {[%clk 01:39:11] [%emt 00:02:40]} 
8...Bd7 {[%clk 01:42:15] [%emt 00:00:19]} 9.Qxc4 {[%clk 01:36:35] [%emt
00:03:07]} 9...Bc6 {[%clk 01:42:37] [%emt 00:00:07]} 10.Bf4 {[%clk 01:37:00]
[%emt 00:00:05]} 10...Bd6 {[%clk 01:42:50] [%emt 00:00:18]} 11.Qc1 {[%clk
01:37:18] [%emt 00:00:11]} 11...Nbd7 {[%clk 01:36:42] [%emt 00:06:38]} 12.Nc3 
{[%clk 01:37:38] [%emt 00:00:11]} 12...Qe7 {[%clk 01:35:58] [%emt 00:01:13]} 
13.Re1 {[%clk 01:11:03] [%emt 00:27:05]} 13...Bxf3 {[%clk 01:31:11] [%emt
00:05:17]} 14.Bxf3 {[%clk 01:11:12] [%emt 00:00:21]} 14...Bxf4 {[%clk 01:31:33]
[%emt 00:00:07]} 15.Qxf4 {[%clk 00:52:04] [%emt 00:19:39]} 15...c6 {[%clk
01:31:40] [%emt 00:00:23]} 16.a5 {[%clk 00:52:30] [%emt 00:00:05]} 16...e5 
{[%clk 01:28:44] [%emt 00:03:25]} 17.dxe5 {[%clk 00:51:52] [%emt 00:01:09]} 
17...Nxe5 {[%clk 01:29:07] [%emt 00:00:06]} 18.Bg2 {[%clk 00:52:19] [%emt
00:00:04]} 18...Rad8 {[%clk 01:27:57] [%emt 00:01:39]} 19.Red1 {[%clk 00:49:57]
[%emt 00:02:52]} 19...h6 {[%clk 01:22:34] [%emt 00:05:53]} 20.h3 {[%clk
00:39:10] [%emt 00:11:17]} 20...Rfe8 {[%clk 01:13:45] [%emt 00:09:18]} 21.Rac1 
{[%clk 00:35:26] [%emt 00:04:14]} 21...h5 {[%clk 00:58:30] [%emt 00:15:45]} 
22.Qa4 {[%clk 00:33:27] [%emt 00:02:30]} 22...Ng6 {[%clk 00:53:34] [%emt
00:05:26]} 23.e3 {[%clk 00:27:05] [%emt 00:06:52]} 23...Nf8 {[%clk 00:48:55]
[%emt 00:05:09]} 24.Qc4 {[%clk 00:20:54] [%emt 00:06:41]} 24...Ne6 {[%clk
00:42:21] [%emt 00:07:04]} 25.b4 {[%clk 00:21:01] [%emt 00:00:24]} 25...Rxd1+ 
{[%clk 00:41:13] [%emt 00:01:37]} 26.Rxd1 {[%clk 00:19:21] [%emt 00:02:10]} 
26...Rd8 {[%clk 00:41:38] [%emt 00:00:05]} 27.Rxd8+ {[%clk 00:11:52] [%emt
00:07:59]} 27...Qxd8 {[%clk 00:41:19] [%emt 00:00:49]} 28.Qe2 {[%clk 00:12:15]
[%emt 00:00:07]} 28...Qd6 {[%clk 00:40:03] [%emt 00:01:45]} 29.Qb2 {[%clk
00:12:28] [%emt 00:00:17]} 29...Kf8 {[%clk 00:33:45] [%emt 00:06:48]} 30.Kh1 
{[%clk 00:05:31] [%emt 00:07:27]} 30...Qd3 {[%clk 00:31:12] [%emt 00:03:03]} 
31.Kg1 {[%clk 00:05:44] [%emt 00:00:18]} 31...Ke7 {[%clk 00:26:07] [%emt
00:05:35]} 32.Bf1 {[%clk 00:05:58] [%emt 00:00:16]} 1/2-1/2

[Event "FIDE Grand Swiss 2023"]
[Site "Villa Marina, Douglas, Isle of Man"]
[Date "2023.10.29"]
[Round "5.15"]
[White "Shankland, Sam"]
[Black "Tari, Aryan"]
[Result "1-0"]
[WhiteElo "2698"]
[BlackElo "2619"]
[EventDate "2023.10.25"]
[ECO "E46"]
[PlyCount "119"]
[BlackFideId "1510045"]
[TimeControl "40/100 + 20/50 + 15 + 30s/move"]
[WhiteFideId "2004887"]

1.d4 {[%clk 01:40:50] [%emt 00:00:09]} 1...Nf6 {[%clk 01:40:53] [%emt 00:00:08]} 
2.c4 {[%clk 01:41:15] [%emt 00:00:06]} 2...e6 {[%clk 01:41:18] [%emt 00:00:05]} 
3.Nc3 {[%clk 01:41:38] [%emt 00:00:06]} 3...Bb4 {[%clk 01:41:44] [%emt
00:00:05]} 4.e3 {[%clk 01:42:01] [%emt 00:00:07]} 4...O-O {[%clk 01:41:51] [%emt
00:00:23]} 5.Bd2 {[%clk 01:42:25] [%emt 00:00:04]} 5...c5 {[%clk 01:40:59] [%emt
00:01:23]} 6.a3 {[%clk 01:42:50] [%emt 00:00:05]} 6...Bxc3 {[%clk 01:40:58]
[%emt 00:00:32]} 7.Bxc3 {[%clk 01:43:16] [%emt 00:00:04]} 7...Ne4 {[%clk
01:41:02] [%emt 00:00:26]} 8.Ne2 {[%clk 01:43:41] [%emt 00:00:04]} 8...b6 
{[%clk 01:39:59] [%emt 00:01:34]} 9.h4 {[%clk 01:44:05] [%emt 00:00:05]} 9...d6 
{[%clk 01:27:45] [%emt 00:12:45]} 10.f3 {[%clk 01:43:56] [%emt 00:00:38]} 
10...Nxc3 {[%clk 01:27:05] [%emt 00:01:11]} 11.Nxc3 {[%clk 01:44:21] [%emt
00:00:05]} 11...cxd4 {[%clk 01:18:48] [%emt 00:08:47]} 12.Qxd4 {[%clk 01:42:48]
[%emt 00:02:02]} 12...Nc6 {[%clk 01:15:57] [%emt 00:03:21]} 13.Qf4 {[%clk
01:38:24] [%emt 00:04:53]} 13...f5 {[%clk 01:01:01] [%emt 00:15:27]} 14.Rd1 
{[%clk 01:25:50] [%emt 00:13:04]} 14...e5 {[%clk 01:01:14] [%emt 00:00:18]} 
15.Qg5 {[%clk 01:25:51] [%emt 00:00:28]} 15...a6 {[%clk 00:56:05] [%emt
00:05:39]} 16.Nd5 {[%clk 01:20:42] [%emt 00:05:39]} 16...Rb8 {[%clk 00:53:59]
[%emt 00:02:38]} 17.g3 {[%clk 01:14:52] [%emt 00:06:19]} 17...Be6 {[%clk
00:50:34] [%emt 00:03:55]} 18.Qxd8 {[%clk 01:09:49] [%emt 00:05:32]} 18...Rfxd8 
{[%clk 00:50:45] [%emt 00:00:20]} 19.Nc7 {[%clk 01:09:26] [%emt 00:00:52]} 
19...Bf7 {[%clk 00:37:05] [%emt 00:14:10]} 20.Rh2 {[%clk 00:56:36] [%emt
00:13:20]} 20...Na5 {[%clk 00:29:21] [%emt 00:08:15]} 21.Nd5 {[%clk 00:55:53]
[%emt 00:01:12]} 21...Bxd5 {[%clk 00:27:19] [%emt 00:02:33]} 22.cxd5 {[%clk
00:56:08] [%emt 00:00:15]} 22...b5 {[%clk 00:26:23] [%emt 00:01:26]} 23.b4 
{[%clk 00:55:37] [%emt 00:01:01]} 23...Nc4 {[%clk 00:26:28] [%emt 00:00:25]} 
24.Bxc4 {[%clk 00:55:35] [%emt 00:00:32]} 24...bxc4 {[%clk 00:26:54] [%emt
00:00:04]} 25.Rc2 {[%clk 00:55:49] [%emt 00:00:15]} 25...a5 {[%clk 00:24:42]
[%emt 00:02:43]} 26.Rxc4 {[%clk 00:55:49] [%emt 00:00:29]} 26...axb4 {[%clk
00:24:49] [%emt 00:00:24]} 27.axb4 {[%clk 00:54:16] [%emt 00:02:03]} 27...Rb5 
{[%clk 00:23:38] [%emt 00:01:40]} 28.e4 {[%clk 00:51:49] [%emt 00:02:57]} 
28...fxe4 {[%clk 00:22:59] [%emt 00:01:09]} 29.fxe4 {[%clk 00:52:16] [%emt
00:00:04]} 29...Ra8 {[%clk 00:22:30] [%emt 00:00:59]} 30.Ke2 {[%clk 00:45:14]
[%emt 00:07:31]} 30...h5 {[%clk 00:21:48] [%emt 00:01:12]} 31.Rb1 {[%clk
00:23:18] [%emt 00:22:27]} 31...Ra3 {[%clk 00:16:13] [%emt 00:06:05]} 32.Rc6 
{[%clk 00:22:01] [%emt 00:01:46]} 32...Ra4 {[%clk 00:07:12] [%emt 00:09:32]} 
33.Kd3 {[%clk 00:13:58] [%emt 00:08:33]} 33...Rbxb4 {[%clk 00:07:16] [%emt
00:00:26]} 34.Rxb4 {[%clk 00:14:23] [%emt 00:00:05]} 34...Rxb4 {[%clk 00:07:43]
[%emt 00:00:03]} 35.Rxd6 {[%clk 00:14:48] [%emt 00:00:04]} 35...Rb3+ {[%clk
00:08:02] [%emt 00:00:11]} 36.Kc4 {[%clk 00:14:57] [%emt 00:00:21]} 36...Re3 
{[%clk 00:07:51] [%emt 00:00:41]} 37.Re6 {[%clk 00:15:01] [%emt 00:00:26]} 
37...Rxe4+ {[%clk 00:08:17] [%emt 00:00:05]} 38.Kc5 {[%clk 00:15:27] [%emt
00:00:03]} 38...Kf7 {[%clk 00:04:40] [%emt 00:04:07]} 39.Kd6 {[%clk 00:15:47]
[%emt 00:00:10]} 39...Re3 {[%clk 00:02:28] [%emt 00:02:42]} 40.Rxe5 {[%clk
00:16:01] [%emt 00:00:17]} 40...Rxg3 {[%clk 00:02:50] [%emt 00:00:08]} 41.Rxh5 
{[%clk 00:15:44] [%emt 00:00:47]} 41...Rg4 {[%clk 00:48:06] [%emt 00:05:13]} 
42.Rf5+ {[%clk 00:51:44] [%emt 00:14:29]} 42...Ke8 {[%clk 00:45:21] [%emt
00:03:16]} 43.Re5+ {[%clk 00:51:33] [%emt 00:00:41]} 43...Kd8 {[%emt 00:01:27]} 
44.Rh5 {[%clk 00:51:46]} 44...Rg6+ {[%clk 00:44:49] [%emt 00:00:23]} 45.Ke5 
{[%clk 00:51:34] [%emt 00:00:41]} 45...Rg4 {[%clk 00:20:53] [%emt 00:24:27]} 
46.Kf5 {[%clk 00:47:00] [%emt 00:05:03]} 46...Rd4 {[%clk 00:20:34] [%emt
00:00:49]} 47.Ke6 {[%clk 00:47:06] [%emt 00:00:24]} 47...Kc7 {[%clk 00:20:59]
[%emt 00:00:06]} 48.Rh7 {[%clk 00:46:43] [%emt 00:00:52]} 48...Re4+ {[%clk
00:20:02] [%emt 00:01:27]} 49.Kf5 {[%clk 00:45:27] [%emt 00:01:46]} 49...Re7 
{[%clk 00:15:30] [%emt 00:05:02]} 50.Kg6 {[%clk 00:45:51] [%emt 00:00:05]} 
50...Kd6 {[%clk 00:15:27] [%emt 00:00:34]} 51.Rxg7 {[%clk 00:46:16] [%emt
00:00:05]} 51...Re1 {[%clk 00:15:40] [%emt 00:00:17]} 52.h5 {[%clk 00:32:30]
[%emt 00:14:16]} 52...Kxd5 {[%clk 00:16:05] [%emt 00:00:05]} 53.Kf7 {[%clk
00:32:17] [%emt 00:00:43]} 53...Rf1+ {[%clk 00:12:37] [%emt 00:03:58]} 54.Kg8 
{[%clk 00:32:13] [%emt 00:00:34]} 54...Ke6 {[%clk 00:08:29] [%emt 00:04:39]} 
55.h6 {[%clk 00:28:44] [%emt 00:03:59]} 55...Ra1 {[%clk 00:08:50] [%emt
00:00:08]} 56.Rf7 {[%clk 00:28:41] [%emt 00:00:33]} 56...Rg1+ {[%clk 00:05:31]
[%emt 00:03:49]} 57.Kf8 {[%clk 00:29:01] [%emt 00:00:10]} 57...Ra1 {[%clk
00:05:25] [%emt 00:00:36]} 58.h7 {[%clk 00:29:19] [%emt 00:00:12]} 58...Ra2 
{[%clk 00:05:10] [%emt 00:00:45]} 59.Re7+ {[%clk 00:29:36] [%emt 00:00:14]} 
59...Kd6 {[%clk 00:05:33] [%emt 00:00:07]} 60.h8=Q {[%clk 00:29:56] [%emt
00:00:10]} 1-0

[Event "FIDE Grand Swiss 2023"]
[Site "Villa Marina, Douglas, Isle of Man"]
[Date "2023.10.29"]
[Round "5.16"]
[White "Aravindh, Chithambaram Vr."]
[Black "Nihal, Sarin"]
[Result "1/2-1/2"]
[WhiteElo "2649"]
[BlackElo "2694"]
[EventDate "2023.10.25"]
[ECO "C47"]
[PlyCount "91"]
[BlackFideId "25092340"]
[TimeControl "40/100 + 20/50 + 15 + 30s/move"]
[WhiteFideId "5072786"]

1.e4 {[%clk 01:40:49] [%emt 00:00:09]} 1...e5 {[%clk 01:40:03] [%emt 00:00:57]} 
2.Nf3 {[%clk 01:41:06] [%emt 00:00:14]} 2...Nc6 {[%clk 01:40:27] [%emt
00:00:06]} 3.Nc3 {[%clk 01:41:15] [%emt 00:00:21]} 3...Nf6 {[%clk 01:40:43]
[%emt 00:00:13]} 4.d4 {[%clk 01:41:11] [%emt 00:00:35]} 4...exd4 {[%clk
01:41:07] [%emt 00:00:06]} 5.Nxd4 {[%clk 01:41:34] [%emt 00:00:06]} 5...Bb4 
{[%clk 01:41:33] [%emt 00:00:04]} 6.Nxc6 {[%clk 01:41:45] [%emt 00:00:20]} 
6...bxc6 {[%clk 01:41:58] [%emt 00:00:05]} 7.Bd3 {[%clk 01:42:06] [%emt
00:00:08]} 7...d5 {[%clk 01:42:03] [%emt 00:00:25]} 8.exd5 {[%clk 01:42:25]
[%emt 00:00:11]} 8...O-O {[%clk 01:42:28] [%emt 00:00:06]} 9.O-O {[%clk
01:42:41] [%emt 00:00:14]} 9...Bg4 {[%clk 01:42:54] [%emt 00:00:04]} 10.f3 
{[%clk 01:42:38] [%emt 00:00:33]} 10...Bh5 {[%clk 01:43:19] [%emt 00:00:06]} 
11.dxc6 {[%clk 01:42:59] [%emt 00:00:08]} 11...Qd4+ {[%clk 01:43:35] [%emt
00:00:13]} 12.Kh1 {[%clk 01:43:22] [%emt 00:00:07]} 12...Bxc3 {[%clk 01:44:01]
[%emt 00:00:05]} 13.bxc3 {[%clk 01:43:46] [%emt 00:00:06]} 13...Qxc3 {[%clk
01:44:27] [%emt 00:00:04]} 14.Rb1 {[%clk 01:44:06] [%emt 00:00:10]} 14...Bg6 
{[%clk 01:44:35] [%emt 00:00:22]} 15.Bb5 {[%clk 01:42:44] [%emt 00:01:52]} 
15...a6 {[%clk 01:23:23] [%emt 00:21:42]} 16.Ba4 {[%clk 01:33:06] [%emt
00:10:08]} 16...Qc4 {[%clk 01:20:04] [%emt 00:03:48]} 17.Bb3 {[%clk 01:30:45]
[%emt 00:02:51]} 17...Qxc6 {[%clk 01:20:28] [%emt 00:00:06]} 18.Bb2 {[%clk
01:27:16] [%emt 00:03:59]} 18...Rad8 {[%clk 01:10:01] [%emt 00:10:58]} 19.Qe1 
{[%clk 01:22:57] [%emt 00:04:47]} 19...Rfe8 {[%clk 01:09:23] [%emt 00:01:11]} 
20.Qf2 {[%clk 00:54:23] [%emt 00:29:02]} 20...h6 {[%clk 01:00:27] [%emt
00:09:26]} 21.Rbd1 {[%clk 00:51:41] [%emt 00:03:12]} 21...Kh7 {[%clk 01:00:28]
[%emt 00:00:30]} 22.Rd4 {[%clk 00:44:59] [%emt 00:07:09]} 22...Rxd4 {[%clk
01:00:12] [%emt 00:00:47]} 23.Bxd4 {[%clk 00:44:51] [%emt 00:00:38]} 23...Nd5 
{[%clk 00:48:01] [%emt 00:12:41]} 24.Re1 {[%clk 00:42:45] [%emt 00:02:37]} 
24...Rd8 {[%clk 00:39:00] [%emt 00:09:32]} 25.h3 {[%clk 00:38:01] [%emt
00:05:13]} 25...f6 {[%clk 00:35:26] [%emt 00:04:04]} 26.Qh4 {[%clk 00:34:23]
[%emt 00:04:06]} 26...Qd6 {[%clk 00:25:17] [%emt 00:10:41]} 27.Bg1 {[%clk
00:28:23] [%emt 00:06:29]} 27...Ne7 {[%clk 00:09:26] [%emt 00:16:22]} 28.Re6 
{[%clk 00:20:04] [%emt 00:08:49]} 28...Qd7 {[%clk 00:04:07] [%emt 00:05:49]} 
29.Qe1 {[%clk 00:16:40] [%emt 00:03:54]} 29...Nf5 {[%clk 00:04:12] [%emt
00:00:26]} 30.Bf2 {[%clk 00:16:00] [%emt 00:01:09]} 30...c6 {[%clk 00:01:22]
[%emt 00:03:20]} 31.c3 {[%clk 00:11:24] [%emt 00:05:06]} 31...h5 {[%clk
00:00:46] [%emt 00:01:07]} 32.g4 {[%clk 00:08:36] [%emt 00:03:18]} 32...Nh6 
{[%clk 00:01:12] [%emt 00:00:03]} 33.Re7 {[%clk 00:07:06] [%emt 00:02:00]} 
33...Qd2 {[%clk 00:01:05] [%emt 00:00:37]} 34.Qxd2 {[%clk 00:05:48] [%emt
00:01:49]} 34...Rxd2 {[%clk 00:01:34]} 35.Bd4 {[%clk 00:06:12] [%emt 00:00:05]} 
35...hxg4 {[%clk 00:01:29] [%emt 00:00:35]} 36.hxg4 {[%clk 00:06:28] [%emt
00:00:13]} 36...Ng8 {[%clk 00:00:37] [%emt 00:01:23]} 37.Rc7 {[%clk 00:06:10]
[%emt 00:00:47]} 37...Bc2 {[%clk 00:00:45] [%emt 00:00:23]} 38.Be6 {[%clk
00:02:03] [%emt 00:04:37]} 38...Bd1 {[%clk 00:01:00] [%emt 00:00:15]} 39.Bf5+ 
{[%clk 00:01:34] [%emt 00:00:59]} 39...Kh8 {[%clk 00:01:29] [%emt 00:00:01]} 
40.Be4 {[%clk 00:01:51] [%emt 00:00:13]} 40...Rxa2 {[%clk 00:01:52] [%emt
00:00:07]} 41.c4 {[%clk 00:28:48] [%emt 00:23:33]} 41...Ra4 {[%clk 00:35:37]
[%emt 00:16:45]} 42.Bc5 {[%clk 00:21:00] [%emt 00:08:17]} 42...f5 {[%clk
00:34:53] [%emt 00:01:15]} 43.Bxf5 {[%clk 00:17:50] [%emt 00:03:40]} 43...Bxf3+ 
{[%clk 00:34:51] [%emt 00:00:32]} 44.Kg1 {[%clk 00:17:30] [%emt 00:00:50]} 
44...Bxg4 {[%clk 00:34:25] [%emt 00:00:56]} 45.Bd3 {[%clk 00:17:36] [%emt
00:00:23]} 45...Nf6 {[%clk 00:21:24] [%emt 00:13:32]} 46.Rxc6 {[%clk 00:11:25]
[%emt 00:06:40]} 1/2-1/2

[Event "FIDE Grand Swiss 2023"]
[Site "Villa Marina, Douglas, Isle of Man"]
[Date "2023.10.29"]
[Round "5.17"]
[White "Nguyen, Thai Dai Van"]
[Black "Fedoseev, Vladimir"]
[Result "1/2-1/2"]
[WhiteElo "2618"]
[BlackElo "2691"]
[EventDate "2023.10.25"]
[ECO "C67"]
[PlyCount "111"]
[BlackFideId "24130737"]
[TimeControl "40/100 + 20/50 + 15 + 30s/move"]
[WhiteFideId "358878"]

1.e4 {[%clk 01:40:57] [%emt 00:00:02]} 1...e5 {[%clk 01:40:35] [%emt 00:00:25]} 
2.Nf3 {[%clk 01:41:19] [%emt 00:00:06]} 2...Nc6 {[%clk 01:40:59] [%emt
00:00:07]} 3.Bb5 {[%clk 01:41:45] [%emt 00:00:05]} 3...Nf6 {[%clk 01:41:17]
[%emt 00:00:12]} 4.O-O {[%clk 01:42:04] [%emt 00:00:10]} 4...Nxe4 {[%clk
01:41:40] [%emt 00:00:08]} 5.Re1 {[%clk 01:42:27] [%emt 00:00:07]} 5...Nd6 
{[%clk 01:42:03] [%emt 00:00:07]} 6.Nxe5 {[%clk 01:42:42] [%emt 00:00:15]} 
6...Be7 {[%clk 01:42:25] [%emt 00:00:08]} 7.Bf1 {[%clk 01:43:07] [%emt
00:00:05]} 7...Nxe5 {[%clk 01:42:48] [%emt 00:00:07]} 8.Rxe5 {[%clk 01:43:32]
[%emt 00:00:05]} 8...O-O {[%clk 01:43:08] [%emt 00:00:09]} 9.d4 {[%clk 01:43:54]
[%emt 00:00:08]} 9...Ne8 {[%clk 01:43:32] [%emt 00:00:07]} 10.d5 {[%clk
01:43:40] [%emt 00:00:44]} 10...Bc5 {[%clk 01:43:54] [%emt 00:00:08]} 11.Re1 
{[%clk 01:42:57] [%emt 00:01:12]} 11...d6 {[%clk 01:43:15] [%emt 00:01:10]} 
12.Nc3 {[%clk 01:41:19] [%emt 00:02:07]} 12...Bf5 {[%clk 01:43:41] [%emt
00:00:05]} 13.Bd3 {[%clk 01:35:13] [%emt 00:06:36]} 13...Qf6 {[%clk 01:43:57]
[%emt 00:00:13]} 14.Be3 {[%clk 01:35:32] [%emt 00:00:11]} 14...Qg6 {[%clk
01:43:45] [%emt 00:00:43]} 15.h3 {[%clk 01:35:37] [%emt 00:00:25]} 15...Rc8 
{[%clk 01:20:17] [%emt 00:23:57]} 16.Bxf5 {[%clk 00:50:50] [%emt 00:45:18]} 
16...Qxf5 {[%clk 01:20:45] [%emt 00:00:02]} 17.Bxc5 {[%clk 00:51:04] [%emt
00:00:16]} 17...dxc5 {[%clk 01:21:07] [%emt 00:00:07]} 18.Ne4 {[%clk 00:49:03]
[%emt 00:02:31]} 18...Nf6 {[%clk 01:02:44] [%emt 00:18:53]} 19.Nxc5 {[%clk
00:45:38] [%emt 00:03:56]} 19...b6 {[%clk 01:00:06] [%emt 00:03:08]} 20.Qd3 
{[%clk 00:37:06] [%emt 00:09:01]} 20...Qxd5 {[%clk 00:56:04] [%emt 00:04:33]} 
21.Qxd5 {[%clk 00:36:35] [%emt 00:01:01]} 21...Nxd5 {[%clk 00:56:27] [%emt
00:00:07]} 22.Nd3 {[%clk 00:36:19] [%emt 00:00:46]} 22...Rfe8 {[%clk 00:49:51]
[%emt 00:07:06]} 23.Rad1 {[%clk 00:36:40] [%emt 00:00:09]} 23...Rxe1+ {[%clk
00:49:59] [%emt 00:00:22]} 24.Nxe1 {[%clk 00:36:44] [%emt 00:00:27]} 24...Nf6 
{[%clk 00:47:44] [%emt 00:02:44]} 25.Nf3 {[%clk 00:36:37] [%emt 00:00:37]} 
25...Re8 {[%clk 00:48:01] [%emt 00:00:13]} 26.Kf1 {[%clk 00:36:58] [%emt
00:00:08]} 26...Kf8 {[%clk 00:48:13] [%emt 00:00:19]} 27.Nd4 {[%clk 00:36:45]
[%emt 00:00:43]} 27...a6 {[%clk 00:45:15] [%emt 00:03:27]} 28.Nc6 {[%clk
00:36:32] [%emt 00:00:43]} 28...g6 {[%clk 00:45:07] [%emt 00:00:39]} 29.f3 
{[%clk 00:33:02] [%emt 00:04:00]} 29...a5 {[%clk 00:43:53] [%emt 00:01:44]} 
30.Kf2 {[%clk 00:31:18] [%emt 00:02:13]} 30...Re6 {[%clk 00:42:43] [%emt
00:01:41]} 31.Rd8+ {[%clk 00:31:07] [%emt 00:00:41]} 31...Ne8 {[%clk 00:43:07]
[%emt 00:00:06]} 32.Nd4 {[%clk 00:31:27] [%emt 00:00:10]} 32...Rd6 {[%clk
00:43:33] [%emt 00:00:04]} 33.Rxd6 {[%clk 00:31:51] [%emt 00:00:05]} 33...Nxd6 
{[%clk 00:43:56] [%emt 00:00:06]} 34.b3 {[%clk 00:28:46] [%emt 00:03:36]} 
34...Ke7 {[%clk 00:44:02] [%emt 00:00:24]} 35.g4 {[%clk 00:27:42] [%emt
00:01:34]} 35...Ne8 {[%clk 00:39:20] [%emt 00:05:13]} 36.Ke3 {[%clk 00:27:01]
[%emt 00:01:10]} 36...Kd6 {[%clk 00:39:34] [%emt 00:00:17]} 37.a3 {[%clk
00:26:18] [%emt 00:01:13]} 37...Kc5 {[%clk 00:38:46] [%emt 00:01:17]} 38.Kd3 
{[%clk 00:24:36] [%emt 00:02:13]} 38...b5 {[%clk 00:37:39] [%emt 00:01:36]} 
39.c4 {[%clk 00:14:36] [%emt 00:10:31]} 39...b4 {[%clk 00:35:00] [%emt
00:03:08]} 40.axb4+ {[%clk 00:14:52] [%emt 00:00:15]} 40...axb4 {[%clk 00:31:56]
[%emt 00:03:34]} 41.f4 {[%clk 00:10:25] [%emt 00:04:57]} 41...Kd6 {[%clk
00:28:32] [%emt 00:03:54]} 42.Nb5+ {[%clk 00:10:27] [%emt 00:00:27]} 42...Kc5 
{[%clk 00:28:49] [%emt 00:00:13]} 43.Nd4 {[%clk 00:10:29] [%emt 00:00:28]} 
43...c6 {[%clk 00:25:36] [%emt 00:03:44]} 44.Nf3 {[%clk 00:07:56] [%emt
00:03:02]} 44...f6 {[%clk 00:25:56] [%emt 00:00:11]} 45.Nd4 {[%clk 00:45:38]
[%emt 00:12:47]} 45...Nc7 {[%clk 01:12:48] [%emt 00:03:39]} 46.f5 {[%clk
00:44:41] [%emt 00:01:27]} 46...g5 {[%clk 01:11:52] [%emt 00:01:26]} 47.Nf3 
{[%clk 00:30:51] [%emt 00:14:19]} 47...Na6 {[%clk 01:09:27] [%emt 00:02:55]} 
48.Nd2 {[%clk 00:29:29] [%emt 00:01:54]} 48...Kb6 {[%clk 01:09:04] [%emt
00:00:52]} 49.Ke3 {[%clk 00:24:52] [%emt 00:05:06]} 49...Nc5 {[%clk 01:09:16]
[%emt 00:00:19]} 50.Kd4 {[%clk 00:25:18] [%emt 00:00:04]} 50...h6 {[%clk
01:09:38] [%emt 00:00:08]} 51.Ke3 {[%clk 00:25:40] [%emt 00:00:07]} 51...Kc7 
{[%clk 01:09:48] [%emt 00:00:20]} 52.Kd4 {[%clk 00:26:00] [%emt 00:00:10]} 
52...Kd6 {[%clk 01:09:09] [%emt 00:01:09]} 53.Ke3 {[%clk 00:25:41] [%emt
00:00:50]} 53...Ke7 {[%clk 01:09:10] [%emt 00:00:28]} 54.Kd4 {[%clk 00:26:02]
[%emt 00:00:10]} 54...Kd6 {[%clk 01:09:39]} 55.Ke3 {[%clk 00:26:24] [%emt
00:00:09]} 55...Ke7 {[%clk 01:10:03] [%emt 00:00:05]} 56.Kd4 {[%clk 00:26:50]} 1/2-1/2